[Event "*** Monthly 3|2 Blitz Masters"]
[Site "Chess.com"]
[Date "2014.11.25"]
[Round "8"]
[White "alturas_pacificas"]
[Black "pKiLz5Rn9b"]
[Result "1-0"]
[WhiteElo "2062"]
[BlackElo "2134"]
[TimeControl "180+2"]
[EndTime "12:39:56 PST"]
[Termination "alturas_pacificas won by resignation"]

1. d4 {[%clk 0:03:00]} 1... Nf6 {[%clk 0:02:57.7]} 2. Bf4 {[%clk 0:03:00]} 2...
d5 {[%clk 0:02:51.2]} 3. e3 {[%clk 0:03:00.8]} 3... e6 {[%clk 0:02:50]} 4. Nf3
{[%clk 0:02:59.5]} 4... Bd6 {[%clk 0:02:51.6]} 5. Bg3 {[%clk 0:03:00.5]} 5... c5
{[%clk 0:02:51.3]} 6. c3 {[%clk 0:03:01.9]} 6... Nc6 {[%clk 0:02:52.2]} 7. Nbd2
{[%clk 0:03:02.3]} 7... O-O {[%clk 0:02:53.5]} 8. Bd3 {[%clk 0:03:02.8]} 8...
Re8 {[%clk 0:02:54.9]} 9. Ne5 {[%clk 0:03:04]} 9... Qc7 {[%clk 0:02:55.3]} 10.
f4 {[%clk 0:03:04.7]} 10... cxd4 {[%clk 0:02:55.1]} 11. exd4 {[%clk 0:03:05.1]}
11... Ne4 {[%clk 0:02:44.1]} 12. Nxe4 {[%clk 0:03:02.1]} 12... dxe4 {[%clk
0:02:44.9]} 13. Bxe4 {[%clk 0:03:04]} 13... Nxe5 {[%clk 0:02:36.9]} 14. fxe5
{[%clk 0:03:03.6]} 14... Be7 {[%clk 0:02:37.5]} 15. O-O {[%clk 0:03:00]} 15...
g6 {[%clk 0:02:37.2]} 16. Qf3 {[%clk 0:03:00.3]} 16... Bf8 {[%clk 0:02:36.8]}
17. Bh4 {[%clk 0:03:01.5]} 17... Bg7 {[%clk 0:02:33.8]} 18. Bf6 {[%clk
0:03:02.6]} 18... Bf8 {[%clk 0:02:17.8]} 19. Qh3 {[%clk 0:02:57.7]} 19... Bd7
{[%clk 0:02:16]} 20. Rf4 {[%clk 0:02:54.7]} 20... Bc6 {[%clk 0:02:13.8]} 21. Rh4
{[%clk 0:02:51.8]} 21... h5 {[%clk 0:02:14]} 22. Rxh5 {[%clk 0:02:19.4]} 22...
Bg7 {[%clk 0:01:59.4]} 23. Rh8+ {[%clk 0:02:13.2]} 1-0

[Event "*** Monthly 3|2 Blitz Masters"]
[Site "Chess.com"]
[Date "2014.11.25"]
[Round "8"]
[White "Quinten94"]
[Black "DanielRensch"]
[Result "1-0"]
[WhiteElo "2245"]
[BlackElo "2340"]
[TimeControl "180+2"]
[EndTime "12:40:42 PST"]
[Termination "Quinten94 won by resignation"]

1. e4 {[%clk 0:03:00]} 1... c5 {[%clk 0:02:59]} 2. Nf3 {[%clk 0:03:01.6]} 2...
d6 {[%clk 0:02:59.8]} 3. d4 {[%clk 0:03:00.5]} 3... cxd4 {[%clk 0:03:01.7]} 4.
Qxd4 {[%clk 0:03:02.2]} 4... Nc6 {[%clk 0:03:02.4]} 5. Bb5 {[%clk 0:03:03.5]}
5... Bd7 {[%clk 0:03:04.3]} 6. Bxc6 {[%clk 0:03:04.9]} 6... Bxc6 {[%clk
0:03:06.2]} 7. Nc3 {[%clk 0:03:06.6]} 7... Nf6 {[%clk 0:03:07.4]} 8. Bg5 {[%clk
0:03:07.4]} 8... e6 {[%clk 0:03:08.8]} 9. O-O-O {[%clk 0:03:08.5]} 9... Be7
{[%clk 0:03:09.6]} 10. Qd3 {[%clk 0:03:10.2]} 10... Qc7 {[%clk 0:03:10.4]} 11.
Nd4 {[%clk 0:03:11.4]} 11... a6 {[%clk 0:03:11.2]} 12. f4 {[%clk 0:03:12.2]}
12... Rc8 {[%clk 0:03:12.1]} 13. Kb1 {[%clk 0:03:12.8]} 13... O-O {[%clk
0:03:11.9]} 14. h4 {[%clk 0:03:12.6]} 14... d5 {[%clk 0:03:09.7]} 15. e5 {[%clk
0:03:11.9]} 15... Ne4 {[%clk 0:03:10.4]} 16. Nxe4 {[%clk 0:03:08.5]} 16... dxe4
{[%clk 0:03:10.6]} 17. Qg3 {[%clk 0:03:02.8]} 17... Bd5 {[%clk 0:03:09.7]} 18.
Bf6 {[%clk 0:02:58]} 18... g6 {[%clk 0:03:04.4]} 19. Qg5 {[%clk 0:02:58]} 19...
Rfe8 {[%clk 0:02:51.3]} 20. h5 {[%clk 0:02:52.5]} 20... Bf8 {[%clk 0:02:49]} 21.
Rh3 {[%clk 0:02:35.7]} 21... Qa5 {[%clk 0:02:24.2]} 22. a3 {[%clk 0:02:31.1]}
22... e3 {[%clk 0:02:16.6]} 23. hxg6 {[%clk 0:02:28.8]} 23... fxg6 {[%clk
0:02:17.4]} 24. Rxh7 {[%clk 0:02:29.4]} 24... Be4 {[%clk 0:02:09.5]} 25. Rdh1
{[%clk 0:02:11.9]} 1-0

[Event "*** Monthly 3|2 Blitz Masters"]
[Site "Chess.com"]
[Date "2014.11.25"]
[Round "8"]
[White "vovkcoach"]
[Black "AlmirDzhumaev"]
[Result "1-0"]
[WhiteElo "2474"]
[BlackElo "2272"]
[TimeControl "180+2"]
[EndTime "12:41:01 PST"]
[Termination "vovkcoach won by checkmate"]

1. Nf3 {[%clk 0:03:00]} 1... d5 {[%clk 0:02:57.8]} 2. g3 {[%clk 0:03:01.3]} 2...
e6 {[%clk 0:02:58]} 3. Bg2 {[%clk 0:03:02.4]} 3... Nf6 {[%clk 0:02:57]} 4. O-O
{[%clk 0:03:04.3]} 4... Be7 {[%clk 0:02:57.4]} 5. c4 {[%clk 0:03:06.2]} 5... O-O
{[%clk 0:02:58.8]} 6. Qc2 {[%clk 0:03:07.4]} 6... c6 {[%clk 0:03:00.3]} 7. b3
{[%clk 0:03:02.9]} 7... Nbd7 {[%clk 0:02:56.6]} 8. Bb2 {[%clk 0:03:04.2]} 8...
Re8 {[%clk 0:02:51.6]} 9. d3 {[%clk 0:02:58.8]} 9... b6 {[%clk 0:02:52.8]} 10.
Nbd2 {[%clk 0:02:58.9]} 10... Bb7 {[%clk 0:02:53.6]} 11. e4 {[%clk 0:02:57.3]}
11... dxe4 {[%clk 0:02:39.3]} 12. dxe4 {[%clk 0:02:59.2]} 12... Rf8 {[%clk
0:02:35.4]} 13. e5 {[%clk 0:02:57.9]} 13... Ne8 {[%clk 0:02:36.1]} 14. Ne4
{[%clk 0:02:49.2]} 14... Qc7 {[%clk 0:02:36]} 15. Nfg5 {[%clk 0:02:45.6]} 15...
g6 {[%clk 0:02:34.1]} 16. Qd2 {[%clk 0:02:35.7]} 16... Rd8 {[%clk 0:02:21.9]}
17. Qf4 {[%clk 0:02:35.9]} 17... c5 {[%clk 0:02:08.6]} 18. Qh4 {[%clk 0:02:33]}
18... h5 {[%clk 0:02:03.3]} 19. Qf4 {[%clk 0:02:32.7]} 19... Ng7 {[%clk
0:01:48.4]} 20. Rad1 {[%clk 0:02:13.6]} 20... Nb8 {[%clk 0:01:41.7]} 21. Rd6
{[%clk 0:02:10]} 21... Nc6 {[%clk 0:01:41]} 22. Rfd1 {[%clk 0:02:05.3]} 22...
Qc8 {[%clk 0:01:24.8]} 23. Nf6+ {[%clk 0:02:00.9]} 23... Kh8 {[%clk 0:01:14.6]}
24. Nxf7+ {[%clk 0:01:59.4]} 24... Rxf7 {[%clk 0:01:11.3]} 25. Qh6# {[%clk
0:01:59.3]} 1-0

[Event "*** Monthly 3|2 Blitz Masters"]
[Site "Chess.com"]
[Date "2014.11.25"]
[Round "8"]
[White "jcibarra"]
[Black "jlandaw"]
[Result "0-1"]
[WhiteElo "2450"]
[BlackElo "2308"]
[TimeControl "180+2"]
[EndTime "12:43:03 PST"]
[Termination "jlandaw won by resignation"]

1. e4 {[%clk 0:02:59.3]} 1... e5 {[%clk 0:02:56.1]} 2. Nf3 {[%clk 0:03:00.1]}
2... Nc6 {[%clk 0:02:51.4]} 3. Bb5 {[%clk 0:03:01]} 3... a6 {[%clk 0:02:52.2]}
4. Bxc6 {[%clk 0:03:01.7]} 4... dxc6 {[%clk 0:02:53.1]} 5. O-O {[%clk
0:03:03.3]} 5... Qf6 {[%clk 0:02:53.8]} 6. d4 {[%clk 0:03:03.5]} 6... exd4
{[%clk 0:02:54.4]} 7. Bg5 {[%clk 0:03:05]} 7... Qg6 {[%clk 0:02:41]} 8. Qxd4
{[%clk 0:03:04.9]} 8... Bd6 {[%clk 0:02:35.1]} 9. e5 {[%clk 0:02:55]} 9... Be7
{[%clk 0:02:35.5]} 10. Bf4 {[%clk 0:02:43.8]} 10... Nh6 {[%clk 0:02:30.9]} 11.
Nbd2 {[%clk 0:02:43.8]} 11... O-O {[%clk 0:02:27.6]} 12. Qc3 {[%clk 0:02:40.8]}
12... Nf5 {[%clk 0:02:23.5]} 13. Rfe1 {[%clk 0:02:41.3]} 13... Be6 {[%clk
0:02:21]} 14. Ne4 {[%clk 0:02:40]} 14... Bd5 {[%clk 0:02:18.4]} 15. Ng3 {[%clk
0:02:32.8]} 15... Bxf3 {[%clk 0:01:45.2]} 16. Qxf3 {[%clk 0:02:31.4]} 16... Nxg3
{[%clk 0:01:42.7]} 17. hxg3 {[%clk 0:02:24.3]} 17... Qxc2 {[%clk 0:01:40.6]} 18.
Re2 {[%clk 0:02:25.7]} 18... Qg6 {[%clk 0:01:34.5]} 19. e6 {[%clk 0:02:26.5]}
19... Rad8 {[%clk 0:01:24.7]} 20. Bxc7 {[%clk 0:02:22.3]} 20... Rd3 {[%clk
0:01:12.5]} 21. exf7+ {[%clk 0:02:18.9]} 21... Rxf7 {[%clk 0:00:34.7]} 22. Qe4
{[%clk 0:02:19.9]} 22... Qxe4 {[%clk 0:00:35.5]} 23. Rxe4 {[%clk 0:02:21.5]}
23... Rd2 {[%clk 0:00:37.1]} 24. Be5 {[%clk 0:01:43.5]} 24... Rfxf2 {[%clk
0:00:33.2]} 25. Bc3 {[%clk 0:01:44.1]} 25... Rxg2+ {[%clk 0:00:31.7]} 26. Kf1
{[%clk 0:01:45.1]} 26... Rdf2+ {[%clk 0:00:29.6]} 27. Ke1 {[%clk 0:01:45.9]}
27... Bc5 {[%clk 0:00:30.6]} 28. Bd4 {[%clk 0:01:43.7]} 28... Bb4+ {[%clk
0:00:17.5]} 29. Bc3 {[%clk 0:01:40.3]} 29... Rxb2 {[%clk 0:00:18.5]} 30. Kf1
{[%clk 0:01:14]} 30... Rbf2+ {[%clk 0:00:17.8]} 0-1

[Event "*** Monthly 3|2 Blitz Masters"]
[Site "Chess.com"]
[Date "2014.11.25"]
[Round "8"]
[White "Argente"]
[Black "MoreChessJulia"]
[Result "1-0"]
[WhiteElo "2180"]
[BlackElo "1884"]
[TimeControl "180+2"]
[EndTime "12:44:20 PST"]
[Termination "Argente won by resignation"]

1. d4 {[%clk 0:03:00]} 1... d5 {[%clk 0:02:57.8]} 2. Bf4 {[%clk 0:02:59.6]} 2...
Nc6 {[%clk 0:02:54.6]} 3. e3 {[%clk 0:03:00.1]} 3... f6 {[%clk 0:02:53.4]} 4.
Nf3 {[%clk 0:02:59.8]} 4... h5 {[%clk 0:02:47.4]} 5. h3 {[%clk 0:02:53.3]} 5...
g5 {[%clk 0:02:47.1]} 6. Bg3 {[%clk 0:02:50.6]} 6... Bg7 {[%clk 0:02:43.3]} 7.
c4 {[%clk 0:02:40.9]} 7... e6 {[%clk 0:02:42.4]} 8. Nc3 {[%clk 0:02:41.3]} 8...
Nge7 {[%clk 0:02:40.9]} 9. Be2 {[%clk 0:02:30.8]} 9... Kf7 {[%clk 0:02:25.5]}
10. Nb5 {[%clk 0:02:24.1]} 10... e5 {[%clk 0:02:19.2]} 11. dxe5 {[%clk
0:02:21.5]} 11... g4 {[%clk 0:02:10.2]} 12. exf6 {[%clk 0:01:45.1]} 12... Bxf6
{[%clk 0:02:04.2]} 13. Bxc7 {[%clk 0:01:32.1]} 13... Qd7 {[%clk 0:01:57.7]} 14.
hxg4 {[%clk 0:01:30.9]} 14... hxg4 {[%clk 0:01:54.9]} 15. Rxh8 {[%clk
0:01:28.1]} 15... Bxh8 {[%clk 0:01:54.6]} 16. Ng5+ {[%clk 0:01:09.3]} 16... Kg6
{[%clk 0:01:54.3]} 17. f4 {[%clk 0:00:54.8]} 17... Bxb2 {[%clk 0:01:30.9]} 18.
Qc2+ {[%clk 0:00:53.3]} 18... Nf5 {[%clk 0:01:18.3]} 19. Qxb2 {[%clk 0:00:50.5]}
19... a6 {[%clk 0:01:18.1]} 20. Bxg4 {[%clk 0:00:21.5]} 20... axb5 {[%clk
0:01:16.4]} 21. cxb5 {[%clk 0:00:19.7]} 21... Qxc7 {[%clk 0:01:11.7]} 22. bxc6
{[%clk 0:00:20.4]} 22... Qa5+ {[%clk 0:01:00.3]} 23. Kf2 {[%clk 0:00:20.1]}
23... bxc6 {[%clk 0:00:59.7]} 24. Rh1 {[%clk 0:00:18.9]} 24... Rb8 {[%clk
0:00:52]} 25. Qe2 {[%clk 0:00:13]} 25... Ng7 {[%clk 0:00:43.1]} 26. Bxc8 {[%clk
0:00:12.7]} 26... Rxc8 {[%clk 0:00:41.6]} 27. Qd3+ {[%clk 0:00:14.3]} 27... Nf5
{[%clk 0:00:31.7]} 28. g4 {[%clk 0:00:14.4]} 28... Qxa2+ {[%clk 0:00:21.6]} 29.
Kf3 {[%clk 0:00:16]} 29... Rf8 {[%clk 0:00:17.9]} 30. gxf5+ {[%clk 0:00:17.3]}
30... Rxf5 {[%clk 0:00:18.1]} 31. Rg1 {[%clk 0:00:15.9]} 31... Qa4 {[%clk
0:00:15.3]} 32. Nh7+ {[%clk 0:00:16.7]} 32... Kf7 {[%clk 0:00:15.3]} 33. Qxf5+
{[%clk 0:00:17.7]} 1-0

[Event "*** Monthly 3|2 Blitz Masters"]
[Site "Chess.com"]
[Date "2014.11.25"]
[Round "8"]
[White "juniortay"]
[Black "minnesotachessmaster"]
[Result "0-1"]
[WhiteElo "2151"]
[BlackElo "1936"]
[TimeControl "180+2"]
[EndTime "12:44:34 PST"]
[Termination "minnesotachessmaster won by resignation"]

1. e4 {[%clk 0:03:00]} 1... e6 {[%clk 0:02:53.6]} 2. Nf3 {[%clk 0:03:00.1]} 2...
d5 {[%clk 0:02:54]} 3. Nc3 {[%clk 0:03:02]} 3... Nf6 {[%clk 0:02:50.8]} 4. e5
{[%clk 0:03:03.3]} 4... Nfd7 {[%clk 0:02:51.5]} 5. d4 {[%clk 0:03:05]} 5... c5
{[%clk 0:02:52.3]} 6. Bg5 {[%clk 0:03:06.5]} 6... Qa5 {[%clk 0:02:41.8]} 7. Bb5
{[%clk 0:03:03.8]} 7... a6 {[%clk 0:02:41.2]} 8. Bxd7+ {[%clk 0:03:03.6]} 8...
Bxd7 {[%clk 0:02:39]} 9. O-O {[%clk 0:03:05.5]} 9... Nc6 {[%clk 0:02:36.9]} 10.
dxc5 {[%clk 0:02:56]} 10... Bxc5 {[%clk 0:02:33.7]} 11. a3 {[%clk 0:02:56.6]}
11... Qc7 {[%clk 0:02:25.4]} 12. Qe2 {[%clk 0:02:52]} 12... O-O {[%clk
0:02:23.8]} 13. Bh4 {[%clk 0:02:52.2]} 13... Rfe8 {[%clk 0:01:45]} 14. Bg3
{[%clk 0:02:49.6]} 14... Nd4 {[%clk 0:01:41.2]} 15. Qd3 {[%clk 0:02:25.6]} 15...
Nxf3+ {[%clk 0:01:40.3]} 16. Qxf3 {[%clk 0:02:25.7]} 16... Bc6 {[%clk 0:01:37]}
17. Qg4 {[%clk 0:02:21.4]} 17... Kh8 {[%clk 0:01:27.2]} 18. Ne2 {[%clk
0:02:15.7]} 18... Rad8 {[%clk 0:01:21.6]} 19. Nd4 {[%clk 0:02:10.4]} 19... Qb6
{[%clk 0:01:13]} 20. Nf3 {[%clk 0:01:54]} 20... Be7 {[%clk 0:00:50.5]} 21. Qd4
{[%clk 0:01:27.6]} 21... Bc5 {[%clk 0:00:48.4]} 22. Qg4 {[%clk 0:01:26.4]} 22...
h6 {[%clk 0:00:45.4]} 23. b4 {[%clk 0:01:20.7]} 23... Be7 {[%clk 0:00:44]} 24.
Nd4 {[%clk 0:01:21.4]} 24... Bb5 {[%clk 0:00:41.2]} 25. Rfe1 {[%clk 0:01:17.3]}
25... Rc8 {[%clk 0:00:42.1]} 26. Rad1 {[%clk 0:00:54.8]} 26... Rc4 {[%clk
0:00:39.3]} 27. Rd2 {[%clk 0:00:34]} 27... a5 {[%clk 0:00:33.6]} 28. bxa5 {[%clk
0:00:12.5]} 28... Qxa5 {[%clk 0:00:34.2]} 29. Red1 {[%clk 0:00:14.2]} 29... Qb6
{[%clk 0:00:21.7]} 30. h4 {[%clk 0:00:14.6]} 30... Bc5 {[%clk 0:00:21.8]} 31.
Nf3 {[%clk 0:00:14.6]} 31... Rxg4 {[%clk 0:00:21.8]} 32. Kh2 {[%clk 0:00:14.8]}
32... Rxg3 {[%clk 0:00:21.9]} 33. fxg3 {[%clk 0:00:15.4]} 33... Bc4 {[%clk
0:00:22.1]} 34. a4 {[%clk 0:00:15.4]} 34... Qa5 {[%clk 0:00:22.6]} 35. Rb1
{[%clk 0:00:16]} 35... Ba6 {[%clk 0:00:22.3]} 36. Rdd1 {[%clk 0:00:15.8]} 36...
Qxa4 {[%clk 0:00:22.9]} 37. Rb3 {[%clk 0:00:14.7]} 37... Qc6 {[%clk 0:00:22.5]}
38. Rdb1 {[%clk 0:00:15.5]} 38... b5 {[%clk 0:00:23.3]} 39. Ra3 {[%clk
0:00:16.7]} 39... Bxa3 {[%clk 0:00:23.5]} 0-1

[Event "*** Monthly 3|2 Blitz Masters"]
[Site "Chess.com"]
[Date "2014.11.25"]
[Round "8"]
[White "RitvarsReimanis"]
[Black "Philofive"]
[Result "1-0"]
[WhiteElo "2239"]
[BlackElo "2201"]
[TimeControl "180+2"]
[EndTime "12:46:19 PST"]
[Termination "RitvarsReimanis won on time"]

1. d4 {[%clk 0:03:00]} 1... Nf6 {[%clk 0:02:56]} 2. c4 {[%clk 0:03:00.6]} 2...
g6 {[%clk 0:02:57.5]} 3. Nc3 {[%clk 0:03:01.8]} 3... Bg7 {[%clk 0:02:59.2]} 4.
e4 {[%clk 0:03:02.8]} 4... d6 {[%clk 0:03:00.8]} 5. h3 {[%clk 0:03:04.1]} 5...
O-O {[%clk 0:03:01.8]} 6. Nf3 {[%clk 0:03:06]} 6... e5 {[%clk 0:03:01.1]} 7. d5
{[%clk 0:03:06.5]} 7... a5 {[%clk 0:03:02.1]} 8. Bg5 {[%clk 0:03:06.6]} 8... Na6
{[%clk 0:03:03.3]} 9. Be2 {[%clk 0:03:07]} 9... Qe8 {[%clk 0:03:02.6]} 10. O-O
{[%clk 0:03:06.4]} 10... Nh5 {[%clk 0:02:46.4]} 11. Re1 {[%clk 0:03:00.3]} 11...
Bd7 {[%clk 0:02:39]} 12. Bf1 {[%clk 0:03:00.1]} 12... f6 {[%clk 0:02:24.2]} 13.
Bc1 {[%clk 0:02:59.3]} 13... f5 {[%clk 0:02:20.7]} 14. Ng5 {[%clk 0:02:59.6]}
14... h6 {[%clk 0:02:10.4]} 15. Ne6 {[%clk 0:02:56.7]} 15... Bxe6 {[%clk
0:02:09.2]} 16. dxe6 {[%clk 0:02:58.6]} 16... Qxe6 {[%clk 0:01:51]} 17. exf5
{[%clk 0:02:56.8]} 17... Qxf5 {[%clk 0:01:51.9]} 18. Be3 {[%clk 0:02:41.1]}
18... Nf4 {[%clk 0:01:49.5]} 19. Nd5 {[%clk 0:02:37.4]} 19... Kh7 {[%clk
0:01:41.6]} 20. Rc1 {[%clk 0:02:36.1]} 20... Rf7 {[%clk 0:01:19.7]} 21. Qb3
{[%clk 0:02:31.6]} 21... b6 {[%clk 0:01:16.2]} 22. Bxf4 {[%clk 0:02:13.6]} 22...
exf4 {[%clk 0:01:13.8]} 23. Bd3 {[%clk 0:02:14.9]} 23... Qg5 {[%clk 0:01:07.8]}
24. Be4 {[%clk 0:02:07.9]} 24... Nc5 {[%clk 0:01:08.3]} 25. Qf3 {[%clk
0:02:08.7]} 25... Nxe4 {[%clk 0:01:03.6]} 26. Rxe4 {[%clk 0:02:10.6]} 26... Be5
{[%clk 0:01:03.6]} 27. Rce1 {[%clk 0:02:01.1]} 27... Raf8 {[%clk 0:01:04.2]} 28.
b3 {[%clk 0:02:00.4]} 28... Qf5 {[%clk 0:01:05.3]} 29. R4e2 {[%clk 0:01:55.9]}
29... g5 {[%clk 0:01:06]} 30. b4 {[%clk 0:01:38.9]} 30... axb4 {[%clk
0:01:05.7]} 31. Nxb4 {[%clk 0:01:40.8]} 31... Bg7 {[%clk 0:00:56.1]} 32. Nd5
{[%clk 0:01:36.4]} 32... Be5 {[%clk 0:00:55.2]} 33. Nb4 {[%clk 0:01:36.2]} 33...
Bg7 {[%clk 0:00:50.1]} 34. Nd5 {[%clk 0:01:36.5]} 34... Be5 {[%clk 0:00:42]} 35.
Nb4 {[%clk 0:01:36.3]} 35... Qg6 {[%clk 0:00:43.1]} 36. Nc6 {[%clk 0:01:29.9]}
36... Bg7 {[%clk 0:00:41.7]} 37. Re6 {[%clk 0:01:28.5]} 37... Rf6 {[%clk
0:00:42.8]} 38. Re7 {[%clk 0:01:20.1]} 38... R8f7 {[%clk 0:00:42.1]} 39. R7e4
{[%clk 0:01:14.6]} 39... Bf8 {[%clk 0:00:28.3]} 40. Re8 {[%clk 0:01:08.1]} 40...
h5 {[%clk 0:00:28.1]} 41. Qc3 {[%clk 0:00:56.8]} 41... g4 {[%clk 0:00:26.5]} 42.
h4 {[%clk 0:00:52.6]} 42... Rf5 {[%clk 0:00:19.5]} 43. R8e6 {[%clk 0:00:50.4]}
43... Qg7 {[%clk 0:00:19]} 44. Nd4 {[%clk 0:00:48.7]} 44... Re5 {[%clk
0:00:13.8]} 45. Qd3+ {[%clk 0:00:47.1]} 45... Kh8 {[%clk 0:00:13.7]} 46. R1xe5
{[%clk 0:00:25.7]} 46... dxe5 {[%clk 0:00:14.6]} 47. Nf5 {[%clk 0:00:25.2]}
47... Qh7 {[%clk 0:00:15.6]} 48. Rxe5 {[%clk 0:00:25.5]} 48... Bd6 {[%clk
0:00:14.9]} 49. Re8+ {[%clk 0:00:25.5]} 49... Rf8 {[%clk 0:00:14.2]} 50. Qd4+
{[%clk 0:00:25.9]} 50... Kg8 {[%clk 0:00:13.3]} 51. Qd5+ {[%clk 0:00:24.8]}
51... Kh8 {[%clk 0:00:10.6]} 52. Rxf8+ {[%clk 0:00:24.4]} 52... Bxf8 {[%clk
0:00:10.5]} 53. Qe5+ {[%clk 0:00:25.7]} 53... Kg8 {[%clk 0:00:10.1]} 54. Qxf4
{[%clk 0:00:23.6]} 54... Bc5 {[%clk 0:00:07]} 55. Qg5+ {[%clk 0:00:22.5]} 55...
Kf7 {[%clk 0:00:05.4]} 56. g3 {[%clk 0:00:15.7]} 1-0

[Event "*** Monthly 3|2 Blitz Masters"]
[Site "Chess.com"]
[Date "2014.11.25"]
[Round "8"]
[White "redchessman"]
[Black "MattyDPerrine"]
[Result "1-0"]
[WhiteElo "2275"]
[BlackElo "2037"]
[TimeControl "180+2"]
[EndTime "12:46:26 PST"]
[Termination "redchessman won by resignation"]

1. Nf3 {[%clk 0:03:00]} 1... c5 {[%clk 0:02:56.3]} 2. c4 {[%clk 0:03:00.3]} 2...
e6 {[%clk 0:02:53.9]} 3. g3 {[%clk 0:02:59.8]} 3... b6 {[%clk 0:02:55.1]} 4. Bg2
{[%clk 0:02:58.7]} 4... Bb7 {[%clk 0:02:55.5]} 5. O-O {[%clk 0:02:59.4]} 5...
Nf6 {[%clk 0:02:55.3]} 6. d4 {[%clk 0:02:59.8]} 6... cxd4 {[%clk 0:02:55]} 7.
Qxd4 {[%clk 0:03:01]} 7... Nc6 {[%clk 0:02:56.3]} 8. Qd2 {[%clk 0:03:01.5]} 8...
d5 {[%clk 0:02:47.7]} 9. cxd5 {[%clk 0:02:59]} 9... Qxd5 {[%clk 0:02:36.4]} 10.
Rd1 {[%clk 0:02:48.4]} 10... Qxd2 {[%clk 0:02:23]} 11. Rxd2 {[%clk 0:02:46.2]}
11... Ne4 {[%clk 0:02:15.6]} 12. Rd1 {[%clk 0:02:44.1]} 12... Bc5 {[%clk
0:02:15.9]} 13. e3 {[%clk 0:02:43.2]} 13... Nb4 {[%clk 0:01:55.7]} 14. a3 {[%clk
0:01:47.3]} 14... Nc2 {[%clk 0:01:48.8]} 15. Ra2 {[%clk 0:01:46]} 15... Bd5
{[%clk 0:01:49.2]} 16. Rxd5 {[%clk 0:01:41.6]} 16... exd5 {[%clk 0:01:51.1]} 17.
b4 {[%clk 0:01:27.8]} 17... Nxb4 {[%clk 0:01:31.7]} 18. axb4 {[%clk 0:01:26.7]}
18... Bxb4 {[%clk 0:01:33.6]} 19. Bd2 {[%clk 0:01:18.8]} 19... Bxd2 {[%clk
0:00:32.7]} 20. Nbxd2 {[%clk 0:01:19.3]} 20... O-O {[%clk 0:00:32.1]} 21. Nd4
{[%clk 0:01:14.4]} 21... f5 {[%clk 0:00:14.9]} 22. Nxe4 {[%clk 0:01:11.1]} 22...
fxe4 {[%clk 0:00:16.8]} 23. Bh3 {[%clk 0:01:08.7]} 23... Rfd8 {[%clk 0:00:15.4]}
24. Ne6 {[%clk 0:01:06.4]} 24... Rd7 {[%clk 0:00:12.2]} 25. Nf4 {[%clk
0:01:01.1]} 25... Rd6 {[%clk 0:00:08.3]} 26. Be6+ {[%clk 0:01:00.4]} 26... Kf8
{[%clk 0:00:07.1]} 27. Bxd5 {[%clk 0:00:53.9]} 27... Rad8 {[%clk 0:00:03.9]} 28.
Bxe4 {[%clk 0:00:52.6]} 28... a5 {[%clk 0:00:05]} 29. Bxh7 {[%clk 0:00:40.9]}
29... g5 {[%clk 0:00:06.3]} 30. Nh3 {[%clk 0:00:36.9]} 30... Rd2 {[%clk
0:00:06.8]} 31. Ra4 {[%clk 0:00:32.2]} 31... Kg7 {[%clk 0:00:07.8]} 32. Bf5
{[%clk 0:00:20.1]} 32... Kf6 {[%clk 0:00:08.8]} 33. g4 {[%clk 0:00:20.7]} 33...
Rb2 {[%clk 0:00:08.1]} 34. Kg2 {[%clk 0:00:21.4]} 34... Rdd2 {[%clk 0:00:09.1]}
35. Kf3 {[%clk 0:00:20.1]} 35... Rb4 {[%clk 0:00:10.5]} 36. Ra3 {[%clk
0:00:20.2]} 36... Rbb2 {[%clk 0:00:11.3]} 37. Bc8 {[%clk 0:00:17.6]} 37... Rb4
{[%clk 0:00:12.2]} 38. Bf5 {[%clk 0:00:18]} 38... a4 {[%clk 0:00:13.6]} 39. Ng1
{[%clk 0:00:10.8]} 39... b5 {[%clk 0:00:15]} 40. h4 {[%clk 0:00:09.9]} 40...
gxh4 {[%clk 0:00:15]} 41. Nh3 {[%clk 0:00:09.6]} 41... Rb3 {[%clk 0:00:14.7]}
42. Ra1 {[%clk 0:00:10.1]} 42... a3 {[%clk 0:00:16.2]} 43. Be4 {[%clk 0:00:09]}
43... b4 {[%clk 0:00:16.9]} 44. g5+ {[%clk 0:00:10.2]} 44... Ke5 {[%clk
0:00:16]} 45. Nf4 {[%clk 0:00:11.3]} 45... a2 {[%clk 0:00:11.1]} 46. g6 {[%clk
0:00:09.8]} 46... Kf6 {[%clk 0:00:12.1]} 47. Nd5+ {[%clk 0:00:09.2]} 47... Kg7
{[%clk 0:00:13]} 48. Nf4 {[%clk 0:00:09.8]} 48... Rc3 {[%clk 0:00:12.4]} 49. Ne2
{[%clk 0:00:08.9]} 49... Rc7 {[%clk 0:00:12.7]} 50. Nd4 {[%clk 0:00:07.2]} 50...
Rd7 {[%clk 0:00:13.5]} 51. Bc6 {[%clk 0:00:07.2]} 51... Rd6 {[%clk 0:00:14]} 52.
Be4 {[%clk 0:00:08.1]} 52... Rf6+ {[%clk 0:00:14.9]} 53. Kg2 {[%clk 0:00:09.1]}
53... Rdxf2+ {[%clk 0:00:15.5]} 54. Kh3 {[%clk 0:00:10.3]} 54... Rf1 {[%clk
0:00:16.5]} 55. Rxa2 {[%clk 0:00:10.9]} 55... Rg1 {[%clk 0:00:17.4]} 56. Bg2
{[%clk 0:00:11]} 56... Rd1 {[%clk 0:00:17.4]} 57. Be4 {[%clk 0:00:10.8]} 57...
Rg1 {[%clk 0:00:17.2]} 58. Ra7+ {[%clk 0:00:10.9]} 58... Kh6 {[%clk 0:00:17.5]}
59. Rh7+ {[%clk 0:00:11.5]} 59... Kg5 {[%clk 0:00:18.5]} 60. Nf3+ {[%clk
0:00:11.2]} 60... Rxf3+ {[%clk 0:00:19]} 61. Bxf3 {[%clk 0:00:12.3]} 61... Kxg6
{[%clk 0:00:20.9]} 62. Be4+ {[%clk 0:00:12.6]} 62... Kg5 {[%clk 0:00:21.6]} 63.
Rg7+ {[%clk 0:00:13.1]} 63... Kf6 {[%clk 0:00:21.4]} 64. Rxg1 {[%clk 0:00:14]}
1-0